fUSD/lending_fUSD_20260629
["ID","MTS","AMOUNT","RATE_DAILY","PERIOD"]
[426687258,1782744653000,-395.6998708,0.00025033,2]
[426687249,1782744653000,-3962.58570964,0.00024684,7]
[426687219,1782744653000,-154.90203707,0.00023771,2]
[426687243,1782744653000,-216.58458871,0.00024566,7]
[426687267,1782744653000,-176.24724414,0.00025033,2]
[426687217,1782744653000,-185.23894762,0.00023771,2]
[426687218,1782744653000,-161.99089327,0.00023771,2]
[426687220,1782744653000,-163.66821689,0.00023778,2]
[426687222,1782744653000,-196.65674306,0.00023834,2]
[426687225,1782744653000,-274.0,0.00024,2]
[426687221,1782744653000,-169.93615308,0.00023778,2]
[426687223,1782744653000,-5767.14,0.00023844,7]
[426687227,1782744653000,-786.0,0.00024,2]
[426687226,1782744653000,-243.0,0.00024,2]
[426687224,1782744653000,-152.0,0.00023947,3]
[426687229,1782744653000,-500.0,0.00024055,2]
[426687228,1782744653000,-642.0,0.00024,2]
[426687231,1782744653000,-150.0,0.00024164,2]
[426687230,1782744653000,-4531.63422557,0.000241,2]
[426687236,1782744653000,-874.25796269,0.00024174,2]
[426687237,1782744653000,-370.82,0.00024174,2]
[426687234,1782744653000,-188.04828906,0.00024174,2]
[426687233,1782744653000,-575.04,0.00024174,2]
[426687232,1782744653000,-211.01,0.00024174,2]
[426687235,1782744653000,-1013.53203731,0.00024174,2]
[426687238,1782744653000,-17247.77,0.00024174,2]
[426687239,1782744653000,-166.66,0.00024346,2]
[426687241,1782744653000,-249.0,0.00024496,2]
[426687242,1782744653000,-2329.12,0.00024566,7]
[426687240,1782744653000,-502.0,0.00024364,8]
[426687264,1782744653000,-247.51599384,0.00025033,2]
[426687313,1782744653000,-320.08062255,0.00025874,2]
[426687269,1782744653000,-320.04910185,0.00025033,2]
[426687306,1782744653000,-8020.5048,0.00025684,14]
[426687300,1782744653000,-150.0,0.00025373,2]
[426687299,1782744653000,-5200.69359319,0.0002535,7]
[426687304,1782744653000,-197.80614462,0.0002552,2]
[426687302,1782744653000,-2500.0,0.00025485,120]
[426687309,1782744653000,-151.09934801,0.00025843,2]
[426687311,1782744653000,-559.48847576,0.00025873,2]
[426687310,1782744653000,-166.66,0.00025854,2]
[426687308,1782744653000,-1100.0,0.000258,9]
[426687312,1782744653000,-324.10460961,0.00025874,2]
[426687316,1782744653000,-463.57594593,0.00025874,2]
[426687305,1782744653000,-151.09934801,0.00025551,2]
[426687318,1782744653000,-476.8138423,0.00025874,2]
[426687315,1782744653000,-223.66424793,0.00025874,2]
[426687319,1782744653000,-150.70407124,0.00025874,2]
[426687321,1782744653000,-532.73729623,0.00025874,2]
[426687320,1782744653000,-464.73312296,0.00025874,2]
[426687322,1782744653000,-472.27538687,0.00025874,2]
[426687323,1782744653000,-239.94036044,0.00025874,2]
[426687325,1782744653000,-161.92267602,0.00025874,2]
[426687327,1782744653000,-471.81333573,0.00025874,2]
[426687324,1782744653000,-495.03198769,0.00025874,2]
[426687274,1782744653000,-207.52141712,0.00025033,2]
[426687326,1782744653000,-466.42714719,0.00025874,2]
[426687317,1782744653000,-197.10731322,0.00025874,2]
[426687301,1782744653000,-182.86,0.00025382,120]
[426687314,1782744653000,-593.54980621,0.00025874,2]
[426687307,1782744653000,-500.0,0.000257,9]
[426687273,1782744653000,-306.88686057,0.00025033,2]
[426687303,1782744653000,-37.19385538,0.0002552,2]
[426687275,1782744653000,-242.882527,0.00025033,2]
[426687278,1782744653000,-318.39788846,0.00025033,2]
[426687281,1782744653000,-233.14261556,0.00025033,2]
[426687280,1782744653000,-229.05908778,0.00025033,2]
[426687277,1782744653000,-309.86743237,0.00025033,2]
[426687282,1782744653000,-233.99375597,0.00025033,2]
[426687279,1782744653000,-370.47789525,0.00025033,2]
[426687284,1782744653000,-230.02955166,0.00025033,2]
[426687283,1782744653000,-323.98178653,0.00025033,2]
[426687285,1782744653000,-309.80407413,0.00025033,2]
[426687295,1782744653000,-502.0,0.00025182,9]
[426687276,1782744653000,-391.38479529,0.00025033,2]
[426687296,1782744653000,-5927.79123494,0.00025184,14]
[426687286,1782744653000,-248.83490474,0.0002504,2]
[426687287,1782744653000,-191.05683785,0.0002504,2]
[426687288,1782744653000,-327.33643377,0.0002504,2]
[426687293,1782744653000,-166.66,0.000251,2]
[426687292,1782744653000,-236.4404981,0.0002504,2]
[426687289,1782744653000,-211.01622613,0.0002504,2]
[426687290,1782744653000,-168.74329914,0.0002504,2]
[426687291,1782744653000,-339.87230616,0.0002504,2]
[426687297,1782744653000,-151.09934801,0.00025259,2]
[426687298,1782744653000,-445.12640681,0.0002535,7]
[426687294,1782744653000,-1162.62,0.00025141,2]
[426687367,1782744654000,-502.0,0.00026,10]
[426687359,1782744654000,-382.1136757,0.00025881,2]
[426687362,1782744654000,-240.80895122,0.00025881,2]
[426687363,1782744654000,-337.48659828,0.00025881,2]
[426687357,1782744654000,-220.01836283,0.00025881,2]
[426687360,1782744654000,-491.00465066,0.00025881,2]
[426687358,1782744654000,-200.40032403,0.00025881,2]
[426687356,1782744654000,-497.66980947,0.00025881,2]
[426687365,1782744654000,-472.88099619,0.00025881,2]
[426687355,1782744654000,-464.7061112,0.00025874,2]
[426687361,1782744654000,-422.03245226,0.00025881,2]
[426687368,1782744654000,-152.0,0.00026083,4]
[426687373,1782744654000,-4531.63422557,0.00026301,2]
[426687366,1782744654000,-1600.0,0.000259,9]
[426687369,1782744654000,-151.09934801,0.00026136,2]
[426687371,1782744654000,-150.0,0.00026181,5]
[426687375,1782744654000,-386.22795219,0.00026328,2]
[426687372,1782744654000,-1420.40686814,0.00026235,2]
[426687374,1782744654000,-154.01627153,0.00026325,2]
[426687378,1782744654000,-150.0,0.00026334,20]
[426687377,1782744654000,-1059.05182638,0.00026334,10]
[426687380,1782744654000,-6723.90933166,0.00026335,120]
[426687379,1782744654000,-52958.70910721,0.00026335,120]
[426687386,1782744654000,-151.09934801,0.00026428,2]
[426687376,1782744654000,-151.0,0.00026332,7]
[426687353,1782744654000,-223.61504785,0.00025874,2]
[426687328,1782744654000,-352.49448828,0.00025874,2]
[426687354,1782744654000,-417.86599109,0.00025874,2]
[426687381,1782744654000,-344.69894631,0.00026335,120]
[426687329,1782744654000,-487.65757715,0.00025874,2]
[426687331,1782744654000,-344.50065432,0.00025874,2]
[426687330,1782744654000,-480.07365278,0.00025874,2]
[426687338,1782744654000,-415.04283425,0.00025874,2]
[426687334,1782744654000,-333.24370221,0.00025874,2]
[426687333,1782744654000,-478.78768705,0.00025874,2]
[426687336,1782744654000,-460.33029085,0.00025874,2]
[426687332,1782744654000,-237.58953952,0.00025874,2]
[426687335,1782744654000,-155.49693022,0.00025874,2]
[426687340,1782744654000,-587.07719293,0.00025874,2]
[426687339,1782744654000,-464.80114855,0.00025874,2]
[426687337,1782744654000,-485.765054,0.00025874,2]
[426687341,1782744654000,-477.59683269,0.00025874,2]
[426687343,1782744654000,-211.56271436,0.00025874,2]
[426687346,1782744654000,-232.88862071,0.00025874,2]
[426687342,1782744654000,-555.71684287,0.00025874,2]
[426687351,1782744654000,-460.05910331,0.00025874,2]
[426687344,1782744654000,-458.11817556,0.00025874,2]
[426687349,1782744654000,-467.98751194,0.00025874,2]
[426687347,1782744654000,-291.16567082,0.00025874,2]
[426687350,1782744654000,-485.9726798,0.00025874,2]
[426687352,1782744654000,-299.07925356,0.00025874,2]
[426687345,1782744654000,-466.28523113,0.00025874,2]
[426687348,1782744654000,-204.24921343,0.00025874,2]
[426687364,1782744654000,-509.80845923,0.00025881,2]
[426687385,1782744654000,-528.694,0.00026351,30]
[426687370,1782744654000,-906.17441772,0.00026147,2]
[426687382,1782744654000,-407.71432293,0.00026335,120]
[426687411,1782744654000,-640.0982037,0.00026435,2]
[426687416,1782744654000,-718.18153058,0.00026435,2]
[426687417,1782744654000,-499.86555332,0.00026435,2]
[426687421,1782744654000,-613.77372114,0.00026435,2]
[426687418,1782744654000,-310.99386043,0.00026435,2]
[426687419,1782744654000,-384.57520283,0.00026435,2]
[426687420,1782744654000,-394.21462644,0.00026435,2]
[426687423,1782744654000,-782.76959058,0.00026435,2]
[426687422,1782744654000,-622.56425137,0.00026435,2]
[426687424,1782744654000,-728.647581,0.00026435,2]
[426687425,1782744654000,-619.73486474,0.00026435,2]
[426687428,1782744654000,-423.12542872,0.00026435,2]
[426687427,1782744654000,-740.95579049,0.00026435,2]
[426687429,1782744654000,-687.17726334,0.00026435,2]
[426687430,1782744654000,-699.42784669,0.00026435,2]
[426687431,1782744654000,-204.48290659,0.00026435,2]
[426687433,1782744654000,-582.33134164,0.00026435,2]
[426687432,1782744654000,-465.77724142,0.00026435,2]
[426687435,1782744654000,-408.49842687,0.00026435,2]
[426687434,1782744654000,-319.96830724,0.00026435,2]
[426687436,1782744654000,-178.93603588,0.00026435,2]
[426687437,1782744654000,-701.98126791,0.00026435,2]
[426687439,1782744654000,-690.08865497,0.00026435,2]
[426687438,1782744654000,-647.96357306,0.00026435,2]
[426687384,1782744654000,-500.0,0.00026351,30]
[426687413,1782744654000,-402.09013188,0.00026435,2]
[426687414,1782744654000,-287.75639426,0.00026435,2]
[426687426,1782744654000,-636.79577692,0.00026435,2]
[426687412,1782744654000,-516.75098148,0.00026435,2]
[426687383,1782744654000,-1439564.96829189,0.00026335,120]
[426687415,1782744654000,-475.17907904,0.00026435,2]
[426687387,1782744654000,-486.15691441,0.00026435,2]
[426687388,1782744654000,-480.12093382,0.00026435,2]
[426687391,1782744654000,-314.15009391,0.00026435,2]
[426687398,1782744654000,-301.40814249,0.00026435,2]
[426687389,1782744654000,-791.39974161,0.00026435,2]
[426687394,1782744654000,-695.36391889,0.00026435,2]
[426687390,1782744654000,-447.32849585,0.00026435,2]
[426687396,1782744654000,-715.22076344,0.00026435,2]
[426687393,1782744654000,-659.4326887,0.00026435,2]
[426687392,1782744654000,-667.73115167,0.00026435,2]
[426687395,1782744654000,-339.5826762,0.00026435,2]
[426687397,1782744654000,-171.48095675,0.00026435,2]
[426687409,1782744654000,-528.74173242,0.00026435,2]
[426687410,1782744654000,-731.48636572,0.00026435,2]
[426687400,1782744654000,-710.31639497,0.00026435,2]
[426687408,1782744654000,-629.08444764,0.00026435,2]
[426687407,1782744654000,-621.90286292,0.00026435,2]
[426687403,1782744654000,-182.19533271,0.00026435,2]
[426687406,1782744654000,-164.36863685,0.00026435,2]
[426687405,1782744654000,-742.54798153,0.00026435,2]
[426687401,1782744654000,-359.82083652,0.00026435,2]
[426687402,1782744654000,-182.11338867,0.00026435,2]
[426687399,1782744654000,-619.64416395,0.00026435,2]
[426687404,1782744654000,-629.70051582,0.00026435,2]
[426687489,1782744655000,-189.16850594,0.00027397,10]
[426687481,1782744655000,-151.09934801,0.00027305,2]
[426687480,1782744655000,-463.10725895,0.0002723,2]
[426687478,1782744655000,-500.0,0.00027052,2]
[426687479,1782744655000,-152.0,0.00027228,5]
[426687471,1782744655000,-774.55520493,0.00026996,2]
[426687473,1782744655000,-951.20161251,0.00026996,2]
[426687472,1782744655000,-887.89549371,0.00026996,2]
[426687475,1782744655000,-774.66858092,0.00026996,2]
[426687470,1782744655000,-824.29086087,0.00026996,2]
[426687484,1782744655000,-189.16850594,0.00027397,10]
[426687474,1782744655000,-767.21715142,0.00026996,2]
[426687487,1782744655000,-189.16850594,0.00027397,10]
[426687491,1782744655000,-189.16850594,0.00027397,10]
[426687483,1782744655000,-189.16850594,0.00027397,10]
[426687485,1782744655000,-189.16850594,0.00027397,10]
[426687486,1782744655000,-189.16850594,0.00027397,10]
[426687488,1782744655000,-189.16850594,0.00027397,10]
[426687490,1782744655000,-189.16850594,0.00027397,10]
[426687500,1782744655000,-189.16850594,0.00027397,10]
[426687499,1782744655000,-189.16850594,0.00027397,10]
[426687492,1782744655000,-189.16850594,0.00027397,10]
[426687501,1782744655000,-188.16850594,0.00027397,10]
[426687502,1782744655000,-1500.0,0.00027397,2]
[426687494,1782744655000,-189.16850594,0.00027397,10]
[426687476,1782744655000,-818.34108443,0.00027003,2]
[426687482,1782744655000,-189.16850594,0.00027397,10]
[426687477,1782744655000,-151.09934801,0.00027012,2]
[426687441,1782744655000,-284.04385911,0.00026435,2]
[426687469,1782744655000,-834.66393958,0.00026996,2]
[426687443,1782744655000,-208.93299555,0.00026435,2]
[426687442,1782744655000,-447.2300957,0.00026435,2]
[426687497,1782744655000,-189.16850594,0.00027397,10]
[426687440,1782744655000,-598.15850713,0.00026435,2]
[426687444,1782744655000,-619.60814826,0.00026435,2]
[426687448,1782744655000,-400.80064806,0.00026442,2]
[426687447,1782744655000,-440.03672566,0.00026442,2]
[426687445,1782744655000,-342.91394514,0.00026442,2]
[426687449,1782744655000,-573.17051356,0.00026442,2]
[426687450,1782744655000,-654.67286754,0.00026442,2]
[426687453,1782744655000,-506.22989742,0.00026442,2]
[426687454,1782744655000,-200.06265244,0.00026442,2]
[426687452,1782744655000,-481.61790244,0.00026442,2]
[426687451,1782744655000,-633.04867839,0.00026442,2]
[426687465,1782744655000,-285.356125,0.00026636,2]
[426687464,1782744655000,-166.66,0.00026608,2]
[426687455,1782744655000,-438.13818679,0.00026442,2]
[426687456,1782744655000,-167.48709581,0.00026442,2]
[426687463,1782744655000,-14058.70101266,0.00026593,2]
[426687462,1782744655000,-419.73813405,0.00026442,2]
[426687458,1782744655000,-230.18746251,0.00026442,2]
[426687457,1782744655000,-679.74461231,0.00026442,2]
[426687459,1782744655000,-709.32149429,0.00026442,2]
[426687461,1782744655000,-269.69595104,0.00026442,2]
[426687460,1782744655000,-166.72601345,0.00026442,2]
[426687466,1782744655000,-150.0,0.00026641,2]
[426687468,1782744655000,-502.0,0.00026818,11]
[426687467,1782744655000,-151.09934801,0.0002672,2]
[426687495,1782744655000,-189.16850594,0.00027397,10]
[426687446,1782744655000,-746.50471421,0.00026442,2]
[426687493,1782744655000,-189.16850594,0.00027397,10]
[426687529,1782744655000,-500.0,0.000275,7]
[426687530,1782744655000,-1800.04,0.00027528,2]
[426687534,1782744655000,-786.31,0.0002755,30]
[426687533,1782744655000,-472.69,0.0002755,30]
[426687536,1782744655000,-1297.17,0.0002755,30]
[426687539,1782744655000,-248.09,0.00027559,2]
[426687541,1782744655000,-248.09,0.00027589,7]
[426687542,1782744655000,-151.09934801,0.00027597,2]
[426687551,1782744655000,-247.85,0.00027708,30]
[426687543,1782744655000,-247.85,0.00027618,30]
[426687544,1782744655000,-248.09,0.00027619,30]
[426687549,1782744655000,-247.85,0.00027678,7]
[426687540,1782744655000,-247.85,0.00027588,7]
[426687545,1782744655000,-502.0,0.00027636,11]
[426687550,1782744655000,-248.09,0.00027679,7]
[426687548,1782744655000,-200.0,0.00027662,2]
[426687546,1782744655000,-247.85,0.00027648,2]
[426687547,1782744655000,-248.09,0.00027649,2]
[426687553,1782744655000,-475.39,0.00027711,7]
[426687558,1782744655000,-1297.17,0.00027711,7]
[426687557,1782744655000,-787.52,0.00027711,7]
[426687559,1782744655000,-247.85,0.00027738,2]
[426687555,1782744655000,-472.69,0.00027711,7]
[426687552,1782744655000,-248.09,0.00027709,30]
[426687554,1782744655000,-1299.65,0.00027711,7]
[426687560,1782744655000,-248.09,0.00027739,2]
[426687496,1782744655000,-189.16850594,0.00027397,10]
[426687535,1782744655000,-787.52,0.0002755,30]
[426687531,1782744655000,-475.39,0.0002755,30]
[426687556,1782744655000,-786.31,0.00027711,7]
[426687532,1782744655000,-1299.65,0.0002755,30]
[426687528,1782744655000,-388.24831335,0.00027457,2]
[426687504,1782744655000,-3098.76,0.00027397,2]
[426687503,1782744655000,-177.33,0.00027397,6]
[426687506,1782744655000,-1026.86,0.00027397,2]
[426687498,1782744655000,-189.16850594,0.00027397,10]
[426687507,1782744655000,-1476.29,0.00027397,2]
[426687509,1782744655000,-7292.58,0.00027397,10]
[426687511,1782744655000,-613.68771843,0.00027397,2]
[426687508,1782744655000,-300.0,0.00027397,2]
[426687510,1782744655000,-153.42192961,0.00027397,2]
[426687513,1782744655000,-311.8727815,0.00027397,2]
[426687512,1782744655000,-155.93639075,0.00027397,2]
[426687516,1782744655000,-514.59402153,0.00027397,2]
[426687514,1782744655000,-171.53134051,0.00027397,2]
[426687505,1782744655000,-181.36,0.00027397,2]
[426687518,1782744655000,-511.40643202,0.00027397,2]
[426687517,1782744655000,-340.93762135,0.00027397,2]
[426687527,1782744655000,-1882.8,0.000274,2]
[426687526,1782744655000,-1882.8,0.000274,2]
[426687521,1782744655000,-1859.14,0.000274,7]
[426687520,1782744655000,-1580.07,0.000274,7]
[426687537,1782744655000,-169.67038483,0.00027557,7]
[426687524,1782744655000,-1882.8,0.000274,2]
[426687515,1782744655000,-343.06268102,0.00027397,2]
[426687525,1782744655000,-1882.8,0.000274,2]
[426687522,1782744655000,-161.19607867,0.000274,2]
[426687538,1782744655000,-247.85,0.00027558,2]
[426687519,1782744655000,-388.24831335,0.00027397,2]
[426687523,1782744655000,-1882.8,0.000274,2]
[426687595,1782744656000,-150.0,0.00027973,2]
[426687590,1782744656000,-247.85,0.00027919,2]
[426687589,1782744656000,-248.09,0.00027919,2]
[426687600,1782744656000,-160.0,0.00028,10]
[426687593,1782744656000,-247.85,0.00027949,7]
[426687592,1782744656000,-248.09,0.00027949,7]
[426687594,1782744656000,-852.34405337,0.00027958,2]
[426687598,1782744656000,-216.58458871,0.00028,10]
[426687597,1782744656000,-247.85,0.00027979,30]
[426687588,1782744656000,-466.38885103,0.00027906,2]
[426687591,1782744656000,-1162.62,0.00027934,120]
[426687604,1782744656000,-247.85,0.00028009,2]
[426687596,1782744656000,-248.09,0.00027979,30]
[426687601,1782744656000,-160.0,0.00028,30]
[426687603,1782744656000,-248.09,0.00028009,2]
[426687602,1782744656000,-160.0,0.00028,10]
[426687605,1782744656000,-475.39,0.00028033,30]
[426687610,1782744656000,-1297.17,0.00028033,30]
[426687611,1782744656000,-248.09,0.00028039,7]
[426687609,1782744656000,-787.52,0.00028033,30]
[426687608,1782744656000,-786.31,0.00028033,30]
[426687587,1782744656000,-151.09934801,0.00027889,2]
[426687599,1782744656000,-216.58458871,0.00028,30]
[426687585,1782744656000,-248.09,0.00027889,30]
[426687568,1782744656000,-1141.44193501,0.00027837,2]
[426687584,1782744656000,-1297.17,0.00027872,2]
[426687607,1782744656000,-472.69,0.00028033,30]
[426687563,1782744656000,-247.85,0.00027798,30]
[426687564,1782744656000,-248.09,0.00027799,30]
[426687561,1782744656000,-247.85,0.00027768,7]
[426687562,1782744656000,-248.09,0.00027769,7]
[426687565,1782744656000,-247.85,0.00027828,2]
[426687567,1782744656000,-929.46624592,0.00027837,2]
[426687569,1782744656000,-1031.33912384,0.00027837,2]
[426687573,1782744656000,-1452.0,0.0002784,2]
[426687576,1782744656000,-982.00930131,0.00027845,2]
[426687574,1782744656000,-469.0,0.0002784,2]
[426687577,1782744656000,-248.09,0.00027859,7]
[426687566,1782744656000,-248.09,0.00027829,2]
[426687571,1782744656000,-920.6605817,0.00027838,2]
[426687570,1782744656000,-1044.32590222,0.00027837,2]
[426687575,1782744656000,-235.0,0.0002784,2]
[426687572,1782744656000,-929.6022971,0.00027838,2]
[426687578,1782744656000,-247.85,0.00027859,7]
[426687580,1782744656000,-1299.65,0.00027872,2]
[426687579,1782744656000,-475.39,0.00027872,2]
[426687581,1782744656000,-472.69,0.00027872,2]
[426687582,1782744656000,-786.31,0.00027872,2]
[426687583,1782744656000,-787.52,0.00027872,2]
[426687586,1782744656000,-247.85,0.00027889,30]
[426687606,1782744656000,-1299.65,0.00028033,30]
[426687623,1782744656000,-786.31,0.00028194,7]
[426687622,1782744656000,-472.69,0.00028194,7]
[426687639,1782744656000,-233.6751283,0.000286,2]
[426687641,1782744656000,-656.74606291,0.000286,2]
[426687645,1782744656000,-342.66032286,0.00028658,2]
[426687644,1782744656000,-216.58458871,0.00028611,2]
[426687646,1782744656000,-155.0,0.00028697,30]
[426687647,1782744656000,-154.0,0.00028697,30]
[426687652,1782744656000,-786.0,0.00028701,30]
[426687651,1782744656000,-154.0,0.00028701,30]
[426687654,1782744656000,-157.0,0.00028701,30]
[426687649,1782744656000,-243.0,0.00028697,30]
[426687640,1782744656000,-182.3488221,0.000286,2]
[426687650,1782744656000,-157.0,0.00028701,30]
[426687656,1782744656000,-160.0,0.00028701,30]
[426687657,1782744656000,-152.0,0.00028701,30]
[426687655,1782744656000,-642.0,0.00028701,30]
[426687658,1782744656000,-159.4177611,0.00028705,30]
[426687660,1782744656000,-1000.0,0.00028767,2]
[426687661,1782744656000,-1022.81286405,0.000288,2]
[426687659,1782744656000,-151.09934801,0.00028766,2]
[426687662,1782744656000,-2028.45160184,0.000289,2]
[426687663,1782744656000,-253.04430661,0.000289,2]
[426687613,1782744656000,-248.09,0.00028069,30]
[426687653,1782744656000,-153.0,0.00028701,30]
[426687638,1782744656000,-197.19051787,0.000286,2]
[426687648,1782744656000,-274.0,0.00028697,30]
[426687637,1782744656000,-253.04430661,0.000286,2]
[426687612,1782744656000,-247.85,0.00028039,7]
[426687642,1782744656000,-231.16267568,0.00028611,2]
[426687619,1782744656000,-151.09934801,0.00028181,2]
[426687614,1782744656000,-247.85,0.00028069,30]
[426687616,1782744656000,-247.85,0.00028099,2]
[426687615,1782744656000,-248.09,0.00028099,2]
[426687621,1782744656000,-1299.65,0.00028194,7]
[426687618,1782744656000,-248.01,0.0002813,7]
[426687620,1782744656000,-475.39,0.00028194,7]
[426687624,1782744656000,-787.52,0.00028194,7]
[426687626,1782744656000,-152.0,0.00028219,5]
[426687627,1782744656000,-14058.70101266,0.00028344,2]
[426687617,1782744656000,-248.15,0.0002813,7]
[426687629,1782744656000,-65274.0,0.000284,2]
[426687643,1782744656000,-160.0,0.00028611,2]
[426687634,1782744656000,-4531.63422557,0.00028503,2]
[426687632,1782744656000,-151.09934801,0.00028474,2]
[426687633,1782744656000,-1580.07,0.000285,7]
[426687631,1782744656000,-258.8322089,0.00028457,7]
[426687636,1782744656000,-2028.45160184,0.000286,2]
[426687635,1782744656000,-500.0,0.00028521,2]
[426687625,1782744656000,-1297.17,0.00028194,7]
[426687630,1782744656000,-502.0,0.00028455,12]
[426687628,1782744656000,-1859.14,0.000284,7]
[426687713,1782744657000,-153.0,0.00029701,30]
[426687696,1782744657000,-229.91600291,0.00029479,2]
[426687699,1782744657000,-197.19051787,0.000295,2]
[426687693,1782744657000,-1859.14,0.000294,7]
[426687698,1782744657000,-253.04430661,0.000295,2]
[426687703,1782744657000,-151.09934801,0.00029643,2]
[426687702,1782744657000,-399.69146786,0.00029597,2]
[426687697,1782744657000,-2028.45160184,0.000295,2]
[426687695,1782744657000,-1831.98,0.00029479,2]
[426687701,1782744657000,-656.74606291,0.000295,2]
[426687704,1782744657000,-1831.98,0.00029644,2]
[426687714,1782744657000,-157.0,0.00029701,30]
[426687717,1782744657000,-152.0,0.00029701,30]
[426687705,1782744657000,-155.0,0.00029697,30]
[426687706,1782744657000,-154.0,0.00029697,30]
[426687707,1782744657000,-274.0,0.00029697,30]
[426687708,1782744657000,-243.0,0.00029697,30]
[426687710,1782744657000,-157.0,0.00029701,30]
[426687711,1782744657000,-154.0,0.00029701,30]
[426687709,1782744657000,-1580.07,0.000297,7]
[426687726,1782744657000,-240.6652596,0.000299,2]
[426687716,1782744657000,-160.0,0.00029701,30]
[426687718,1782744657000,-2028.45160184,0.000298,2]
[426687694,1782744657000,-258.8322089,0.00029457,7]
[426687712,1782744657000,-786.0,0.00029701,30]
[426687715,1782744657000,-642.0,0.00029701,30]
[426687664,1782744657000,-197.19051787,0.000289,2]
[426687690,1782744657000,-151.09934801,0.0002935,2]
[426687665,1782744657000,-233.6751283,0.000289,2]
[426687666,1782744657000,-656.74606291,0.000289,2]
[426687667,1782744657000,-1026.22057709,0.00028973,2]
[426687668,1782744657000,-860.0,0.00029,7]
[426687669,1782744657000,-1000.0,0.00029,2]
[426687670,1782744657000,-500.0,0.00029,7]
[426687671,1782744657000,-326.89924161,0.00029,2]
[426687672,1782744657000,-151.09934801,0.00029058,2]
[426687673,1782744657000,-500.0,0.00029092,7]
[426687678,1782744657000,-2028.45160184,0.000292,2]
[426687674,1782744657000,-1084.37728691,0.00029099,2]
[426687675,1782744657000,-1331.68225751,0.00029099,2]
[426687676,1782744657000,-1218.38021925,0.00029099,2]
[426687679,1782744657000,-253.04430661,0.000292,2]
[426687680,1782744657000,-197.19051787,0.000292,2]
[426687677,1782744657000,-1203.22897781,0.00029099,2]
[426687681,1782744657000,-233.6751283,0.000292,2]
[426687682,1782744657000,-656.74606291,0.000292,2]
[426687685,1782744657000,-345.34,0.00029222,120]
[426687684,1782744657000,-214.09006206,0.00029222,7]
[426687688,1782744657000,-502.0,0.00029273,13]
[426687689,1782744657000,-1831.98,0.00029315,2]
[426687683,1782744657000,-5528.0,0.000292,3]
[426687686,1782744657000,-319.55,0.00029223,120]
[426687687,1782744657000,-503.0,0.0002926,2]
[426687691,1782744657000,-150.0,0.00029372,2]
[426687719,1782744657000,-253.04430661,0.000298,2]
[426687700,1782744657000,-233.6751283,0.000295,2]
[426687724,1782744657000,-2200.0,0.000299,10]
[426687752,1782744657000,-14999.99,0.0003,2]
[426687761,1782744657000,-14058.70101266,0.00030096,2]
[426687762,1782744657000,-2028.45160184,0.000301,2]
[426687755,1782744657000,-160.0,0.0003,120]
[426687757,1782744657000,-345.34,0.00030044,120]
[426687760,1782744657000,-502.0,0.00030091,14]
[426687756,1782744657000,-352.64707502,0.0003,2]
[426687754,1782744657000,-182.72727272,0.0003,2]
[426687758,1782744657000,-319.55,0.00030045,120]
[426687759,1782744657000,-500.0,0.00030087,19]
[426687764,1782744657000,-1000.13,0.00030136,2]
[426687763,1782744657000,-5528.0,0.000301,5]
[426687753,1782744657000,-800.0,0.0003,2]
[426687765,1782744657000,-1000.13,0.00030136,2]
[426687767,1782744657000,-1000.13,0.00030136,2]
[426687768,1782744657000,-1000.13,0.00030136,2]
[426687769,1782744657000,-1000.13,0.00030136,2]
[426687772,1782744657000,-1000.13,0.00030136,2]
[426687773,1782744657000,-1000.13,0.00030136,2]
[426687771,1782744657000,-1000.13,0.00030136,2]